Workbook

Sheet Richmond
A1: 534-544 Richmond: Financials
B3: 534 N Richmond | C3: 536 N Richmond | D3: 538 N Richmond | E3: 540 N Richmond | F3: 542 N Richmond | G3: 544 N Richmond | H3: Total
A5: Annual Gross Rent | B5: =1100*12 -> 13200 | C5: =1050*12 -> 12600 | D5: =(1000*9)+(1050*3) -> 12150 | E5: =(1050*12) -> 12600 | F5: =(1050*12) -> 12600 | G5: =(1050*12) -> 12600 | H5: =SUM(B5:G5) -> 75750
A7: Less Expenses:
A8: Insurance | B8: 1292 | C8: 1292 | D8: 1292 | E8: 1292 | F8: 1292 | G8: 1292 | H8: =SUM(B8:G8) -> 7752
A9: Property Tax | B9: 1243 | C9: =B9 -> 1243 | D9: =C9 -> 1243 | E9: =D9 -> 1243 | F9: =E9 -> 1243 | G9: =F9 -> 1243 | H9: =SUM(B9:G9) -> 7458
A10: Maintenance/Repairs | B10: 500 | C10: 500 | D10: 500 | E10: 500 | F10: 500 | G10: 500 | H10: =SUM(B10:G10) -> 3000
A12: Total Expenses: | B12: =SUM(B8:B11) -> 3035 | C12: =SUM(C8:C11) -> 3035 | D12: =SUM(D8:D11) -> 3035 | E12: =SUM(E8:E11) -> 3035 | F12: =SUM(F8:F11) -> 3035 | G12: =SUM(G8:G11) -> 3035 | H12: =SUM(B12:G12) -> 18210
A14: NOI | H14: =H5-H12 -> 57540
A18: 7.5 cap | B18: =+H14/0.075 -> 767200
